[Event "Titled Tuesday Blitz January 18 2022"]
[White "Kovalev, Vladislav"]
[Black "Goltsev, Dmitry"]
[WhiteFideId "13504398"]
[BlackFideId "24176710"]
[WhiteElo "2530"]
[BlackElo "2273"]
[Result "1-0"]
[Round "04"]
[TimeControl "180+1"]
[Date "2022.01.18"]
[WhiteClock "0:00:04"]
[BlackClock "0:00:02"]

1. e4 {[%clk 0:02:56]}  e6 {[%clk 0:02:59]} 2. Qe2 {[%clk 0:02:55]}  c5 {[%clk 0:02:57]} 3. g3 {[%clk 0:02:55]}  Nc6 {[%clk 0:02:55]} 4. Bg2 {[%clk 0:02:56]}  h5 {[%clk 0:02:55]} 5. Nf3 {[%clk 0:02:55]}  d6 {[%clk 0:02:53]} 6. O-O {[%clk 0:02:56]}  e5 {[%clk 0:02:54]} 7. c3 {[%clk 0:02:50]}  Be7 {[%clk 0:02:49]} 8. Na3 {[%clk 0:02:44]}  h4 {[%clk 0:02:48]} 9. Nc4 {[%clk 0:02:39]}  hxg3 {[%clk 0:02:37]} 10. hxg3 {[%clk 0:02:37]}  Bh3 {[%clk 0:02:37]} 11. Bxh3 {[%clk 0:02:38]}  Rxh3 {[%clk 0:02:35]} 12. Kg2 {[%clk 0:02:39]}  Qd7 {[%clk 0:02:34]} 13. d3 {[%clk 0:02:25]}  Rh8 {[%clk 0:02:26]} 14. Rh1 {[%clk 0:02:25]}  Rxh1 {[%clk 0:02:26]} 15. Kxh1 {[%clk 0:02:26]}  Qh3+ {[%clk 0:02:26]} 16. Kg1 {[%clk 0:02:26]}  Nh6 {[%clk 0:02:24]} 17. Qf1 {[%clk 0:02:24]}  Qh5 {[%clk 0:02:17]} 18. Kg2 {[%clk 0:02:23]}  O-O-O {[%clk 0:02:15]} 19. Bxh6 {[%clk 0:02:22]}  Qxh6 {[%clk 0:02:13]} 20. Qh1 {[%clk 0:02:22]}  Rh8 {[%clk 0:02:11]} 21. Qxh6 {[%clk 0:02:22]}  Rxh6 {[%clk 0:02:12]} 22. Ne3 {[%clk 0:02:22]}  Bf8 {[%clk 0:02:11]} 23. Nf5 {[%clk 0:02:21]}  Rh8 {[%clk 0:02:07]} 24. Ng5 {[%clk 0:02:19]}  Nd8 {[%clk 0:02:06]} 25. a4 {[%clk 0:02:18]}  f6 {[%clk 0:02:04]} 26. Nf3 {[%clk 0:02:18]}  Nc6 {[%clk 0:02:00]} 27. N3h4 {[%clk 0:02:17]}  Kd7 {[%clk 0:01:53]} 28. Ng6 {[%clk 0:02:16]}  Rg8 {[%clk 0:01:53]} 29. Rh1 {[%clk 0:02:16]}  Ne7 {[%clk 0:01:50]} 30. Nxf8+ {[%clk 0:02:11]}  Rxf8 {[%clk 0:01:50]} 31. Nxg7 {[%clk 0:02:12]}  d5 {[%clk 0:01:49]} 32. Rh7 {[%clk 0:02:12]}  Kd6 {[%clk 0:01:47]} 33. Nf5+ {[%clk 0:02:07]}  Nxf5 {[%clk 0:01:47]} 34. exf5 {[%clk 0:02:08]}  Kc6 {[%clk 0:01:44]} 35. g4 {[%clk 0:02:07]}  a6 {[%clk 0:01:44]} 36. Kf3 {[%clk 0:02:05]}  b5 {[%clk 0:01:44]} 37. axb5+ {[%clk 0:02:06]}  axb5 {[%clk 0:01:43]} 38. Re7 {[%clk 0:02:06]}  c4 {[%clk 0:01:37]} 39. Re6+ {[%clk 0:02:03]}  Kc5 {[%clk 0:01:34]} 40. Ke3 {[%clk 0:02:04]}  d4+ {[%clk 0:01:15]} 41. Kd2 {[%clk 0:01:57]}  Kd5 {[%clk 0:01:13]} 42. Kc2 {[%clk 0:01:46]}  Rg8 {[%clk 0:01:04]} 43. f3 {[%clk 0:00:46]}  Rh8 {[%clk 0:01:04]} 44. dxc4+ {[%clk 0:00:44]}  bxc4 {[%clk 0:01:03]} 45. Rxf6 {[%clk 0:00:43]}  Rh2+ {[%clk 0:01:03]} 46. Kb1 {[%clk 0:00:40]}  d3 {[%clk 0:00:55]} 47. Rf8 {[%clk 0:00:40]}  Kd6 {[%clk 0:00:51]} 48. f6 {[%clk 0:00:34]}  Ke6 {[%clk 0:00:47]} 49. g5 {[%clk 0:00:34]}  Rg2 {[%clk 0:00:47]} 50. Re8+ {[%clk 0:00:33]}  Kf7 {[%clk 0:00:39]} 51. Re7+ {[%clk 0:00:33]}  Kf8 {[%clk 0:00:40]} 52. Rd7 {[%clk 0:00:10]}  Rxg5 {[%clk 0:00:40]} 53. b3 {[%clk 0:00:10]}  Rf5 {[%clk 0:00:37]} 54. bxc4 {[%clk 0:00:08]}  Rxf3 {[%clk 0:00:37]} 55. c5 {[%clk 0:00:09]}  Rxf6 {[%clk 0:00:29]} 56. Rxd3 {[%clk 0:00:09]}  Rc6 {[%clk 0:00:30]} 57. Rd5 {[%clk 0:00:10]}  Ke7 {[%clk 0:00:29]} 58. Kc2 {[%clk 0:00:10]}  Ke6 {[%clk 0:00:28]} 59. c4 {[%clk 0:00:11]}  Rc8 {[%clk 0:00:27]} 60. Kc3 {[%clk 0:00:12]}  Kf5 {[%clk 0:00:22]} 61. Kb4 {[%clk 0:00:10]}  Ke6 {[%clk 0:00:11]} 62. Rd6+ {[%clk 0:00:09]}  Ke7 {[%clk 0:00:09]} 63. Kb5 {[%clk 0:00:10]}  e4 {[%clk 0:00:05]} 64. Rd4 {[%clk 0:00:08]}  e3 {[%clk 0:00:03]} 65. c6 {[%clk 0:00:04]}  Rb8+ {[%clk 0:00:02]} 66. Kc5 {[%clk 0:00:05]}  Ra8 {[%clk 0:00:01]} 67. Re4+ {[%clk 0:00:04]}  Kd8 {[%clk 0:00:01]} 68. Kd6 {[%clk 0:00:04]}  Ra7 {[%clk 0:00:01]} 69. Rxe3 {[%clk 0:00:04]}  Rh7 {[%clk 0:00:02]} 70. Re6 {[%clk 0:00:03]}  Rg7 {[%clk 0:00:01]} 71. c7+ {[%clk 0:00:02]}  Rxc7 {[%clk 0:00:01]} 72. Re8+ {[%clk 0:00:03]}  Kxe8 {[%clk 0:00:02]} 73. Kxc7 {[%clk 0:00:04]}  Ke7 {[%clk 0:00:02]} 74. c5 {[%clk 0:00:04]} 1-0


[Site "https://www.chess.com"]

[Event "Titled Tuesday Blitz January 18 2022"]
[White "Krzywda, Andrzej"]
[Black "Hasangatin, Ramil"]
[WhiteFideId "1114565"]
[BlackFideId "4122160"]
[WhiteElo "2098"]
[BlackElo "2375"]
[Result "0-1"]
[Round "04"]
[TimeControl "180+1"]
[Date "2022.01.18"]
[WhiteClock "0:00:15"]
[BlackClock "0:00:54"]

1. d4 {[%clk 0:03:00]}  Nf6 {[%clk 0:02:57]} 2. Nf3 {[%clk 0:03:01]}  d6 {[%clk 0:02:57]} 3. g3 {[%clk 0:03:01]}  g6 {[%clk 0:02:55]} 4. Bg2 {[%clk 0:03:02]}  Bg7 {[%clk 0:02:56]} 5. O-O {[%clk 0:03:02]}  O-O {[%clk 0:02:56]} 6. c4 {[%clk 0:03:03]}  c6 {[%clk 0:02:55]} 7. Qc2 {[%clk 0:03:02]}  Bf5 {[%clk 0:02:55]} 8. Qb3 {[%clk 0:03:01]}  Qb6 {[%clk 0:02:53]} 9. Nc3 {[%clk 0:03:02]}  Ne4 {[%clk 0:02:53]} 10. Be3 {[%clk 0:02:57]}  Nxc3 {[%clk 0:02:52]} 11. bxc3 {[%clk 0:02:48]}  Be4 {[%clk 0:02:51]} 12. Rfd1 {[%clk 0:02:40]}  Qc7 {[%clk 0:02:46]} 13. Bf1 {[%clk 0:02:36]}  Bxf3 {[%clk 0:02:45]} 14. exf3 {[%clk 0:02:36]}  c5 {[%clk 0:02:42]} 15. Rab1 {[%clk 0:02:32]}  b6 {[%clk 0:02:42]} 16. a4 {[%clk 0:02:32]}  Nc6 {[%clk 0:02:42]} 17. dxc5 {[%clk 0:02:26]}  dxc5 {[%clk 0:02:36]} 18. Bf4 {[%clk 0:02:25]}  Be5 {[%clk 0:02:19]} 19. Bh6 {[%clk 0:02:19]}  Rfd8 {[%clk 0:02:17]} 20. Rd5 {[%clk 0:02:19]}  e6 {[%clk 0:02:11]} 21. Rd3 {[%clk 0:02:10]}  Rxd3 {[%clk 0:02:10]} 22. Bxd3 {[%clk 0:02:10]}  Rd8 {[%clk 0:02:06]} 23. Be4 {[%clk 0:02:11]}  Na5 {[%clk 0:02:01]} 24. Qb5 {[%clk 0:02:00]}  Bxc3 {[%clk 0:01:58]} 25. Kg2 {[%clk 0:01:46]}  Qd7 {[%clk 0:01:51]} 26. Qa6 {[%clk 0:01:30]}  Bf6 {[%clk 0:01:49]} 27. h4 {[%clk 0:01:06]}  Qe7 {[%clk 0:01:48]} 28. Re1 {[%clk 0:00:57]}  Nb3 {[%clk 0:01:34]} 29. f4 {[%clk 0:00:39]}  Nd2 {[%clk 0:01:27]} 30. Bb7 {[%clk 0:00:32]}  Bg7 {[%clk 0:01:15]} 31. Bxg7 {[%clk 0:00:22]}  Kxg7 {[%clk 0:01:16]} 32. Rd1 {[%clk 0:00:20]}  Rd6 {[%clk 0:00:56]} 33. Qxa7 {[%clk 0:00:18]}  Nxc4 {[%clk 0:00:56]} 34. Rxd6 {[%clk 0:00:15]}  Nxd6 {[%clk 0:00:55]} 35. Bf3 {[%clk 0:00:15]}  Qxa7 {[%clk 0:00:54]} 0-1


[Site "https://www.chess.com"]

[Event "Titled Tuesday Blitz January 18 2022"]
[White "Lauridsen, Jesper Morch"]
[Black "Howell, David W L"]
[WhiteFideId "1401890"]
[BlackFideId "410608"]
[WhiteElo "2185"]
[BlackElo "2559"]
[Result "0-1"]
[Round "04"]
[TimeControl "180+1"]
[Date "2022.01.18"]
[WhiteClock "0:00:01"]
[BlackClock "0:01:12"]

1. e4 {[%clk 0:03:00]}  c5 {[%clk 0:02:58]} 2. Nf3 {[%clk 0:02:57]}  Nc6 {[%clk 0:02:57]} 3. d4 {[%clk 0:02:56]}  cxd4 {[%clk 0:02:57]} 4. Nxd4 {[%clk 0:02:56]}  Nf6 {[%clk 0:02:57]} 5. Nc3 {[%clk 0:02:56]}  e5 {[%clk 0:02:57]} 6. Ndb5 {[%clk 0:02:55]}  d6 {[%clk 0:02:55]} 7. Bg5 {[%clk 0:02:54]}  a6 {[%clk 0:02:53]} 8. Na3 {[%clk 0:02:54]}  b5 {[%clk 0:02:53]} 9. Bxf6 {[%clk 0:02:52]}  gxf6 {[%clk 0:02:54]} 10. Nd5 {[%clk 0:02:51]}  f5 {[%clk 0:02:52]} 11. Bxb5 {[%clk 0:02:47]}  axb5 {[%clk 0:02:44]} 12. Nxb5 {[%clk 0:02:45]}  Ra5 {[%clk 0:02:29]} 13. Nbc7+ {[%clk 0:02:32]}  Kd7 {[%clk 0:02:29]} 14. Qh5 {[%clk 0:02:29]}  Rxd5 {[%clk 0:02:22]} 15. Nxd5 {[%clk 0:02:10]}  Ke8 {[%clk 0:02:21]} 16. O-O {[%clk 0:01:37]}  Be6 {[%clk 0:02:21]} 17. Rad1 {[%clk 0:01:04]}  fxe4 {[%clk 0:02:10]} 18. f3 {[%clk 0:00:50]}  Bxd5 {[%clk 0:02:02]} 19. Rxd5 {[%clk 0:00:45]}  e3 {[%clk 0:01:59]} 20. f4 {[%clk 0:00:37]}  Qc7 {[%clk 0:01:31]} 21. fxe5 {[%clk 0:00:21]}  Nxe5 {[%clk 0:01:31]} 22. Qe2 {[%clk 0:00:09]}  Bh6 {[%clk 0:01:27]} 23. c3 {[%clk 0:00:06]}  Rg8 {[%clk 0:01:25]} 24. Kh1 {[%clk 0:00:05]}  Rg6 {[%clk 0:01:22]} 25. Qb5+ {[%clk 0:00:05]}  Kf8 {[%clk 0:01:22]} 26. a4 {[%clk 0:00:03]}  Kg7 {[%clk 0:01:15]} 27. Qe2 {[%clk 0:00:02]}  Qc6 {[%clk 0:01:13]} 28. Rdd1 {[%clk 0:00:01]}  Qxa4 {[%clk 0:01:12]} 0-1


[Site "https://www.chess.com"]

[Event "Titled Tuesday Blitz January 18 2022"]
[White "Le, Tuan Minh"]
[Black "Shkapenko, Pavel"]
[WhiteFideId "12401153"]
[BlackFideId "4151933"]
[WhiteElo "2450"]
[BlackElo "2386"]
[Result "1-0"]
[Round "04"]
[TimeControl "180+1"]
[Date "2022.01.18"]
[WhiteClock "0:00:11"]
[BlackClock "0:00:11"]

1. d4 {[%clk 0:02:53]}  Nf6 {[%clk 0:02:59]} 2. Nf3 {[%clk 0:02:53]}  e6 {[%clk 0:02:59]} 3. Bf4 {[%clk 0:02:54]}  c5 {[%clk 0:02:59]} 4. c3 {[%clk 0:02:54]}  cxd4 {[%clk 0:02:41]} 5. cxd4 {[%clk 0:02:55]}  Qb6 {[%clk 0:02:36]} 6. Qc2 {[%clk 0:02:50]}  Nc6 {[%clk 0:02:31]} 7. e3 {[%clk 0:02:51]}  Nb4 {[%clk 0:02:26]} 8. Qc1 {[%clk 0:02:47]}  Nfd5 {[%clk 0:02:21]} 9. Bg3 {[%clk 0:02:46]}  Qa5 {[%clk 0:02:16]} 10. Nbd2 {[%clk 0:02:43]}  Qa4 {[%clk 0:02:16]} 11. b3 {[%clk 0:02:38]}  Qa3 {[%clk 0:02:09]} 12. Qxa3 {[%clk 0:02:27]}  Nc2+ {[%clk 0:02:08]} 13. Kd1 {[%clk 0:02:28]}  Nxa3 {[%clk 0:02:08]} 14. Rc1 {[%clk 0:02:28]}  Nb4 {[%clk 0:01:42]} 15. Ne4 {[%clk 0:02:16]}  Nxa2 {[%clk 0:01:22]} 16. Ra1 {[%clk 0:02:14]}  f5 {[%clk 0:01:22]} 17. Nd6+ {[%clk 0:01:40]}  Bxd6 {[%clk 0:01:22]} 18. Bxd6 {[%clk 0:01:41]}  Nc3+ {[%clk 0:01:22]} 19. Kc1 {[%clk 0:01:39]}  Nab5 {[%clk 0:01:18]} 20. Bb4 {[%clk 0:01:38]}  b6 {[%clk 0:00:52]} 21. Ne5 {[%clk 0:01:28]}  Nd5 {[%clk 0:00:37]} 22. Bd2 {[%clk 0:01:27]}  Nd6 {[%clk 0:00:32]} 23. Nc4 {[%clk 0:01:24]}  Nxc4 {[%clk 0:00:31]} 24. bxc4 {[%clk 0:01:25]}  Nf6 {[%clk 0:00:31]} 25. f3 {[%clk 0:01:26]}  Bb7 {[%clk 0:00:31]} 26. Kb2 {[%clk 0:01:26]}  Kf7 {[%clk 0:00:29]} 27. Bd3 {[%clk 0:01:26]}  Rhc8 {[%clk 0:00:28]} 28. Rhc1 {[%clk 0:01:26]}  a5 {[%clk 0:00:23]} 29. Ka3 {[%clk 0:01:24]}  Ba6 {[%clk 0:00:23]} 30. Rab1 {[%clk 0:01:25]}  Rc6 {[%clk 0:00:23]} 31. Rb2 {[%clk 0:00:33]}  Rac8 {[%clk 0:00:22]} 32. Rbc2 {[%clk 0:00:34]}  d5 {[%clk 0:00:16]} 33. cxd5 {[%clk 0:00:34]}  Rxc2 {[%clk 0:00:16]} 34. dxe6+ {[%clk 0:00:35]}  Kxe6 {[%clk 0:00:16]} 35. Bxc2 {[%clk 0:00:35]}  b5 {[%clk 0:00:15]} 36. Bxa5 {[%clk 0:00:30]}  Nd5 {[%clk 0:00:15]} 37. Bd2 {[%clk 0:00:30]}  b4+ {[%clk 0:00:12]} 38. Kb2 {[%clk 0:00:29]}  Kd6 {[%clk 0:00:11]} 39. e4 {[%clk 0:00:22]}  fxe4 {[%clk 0:00:11]} 40. fxe4 {[%clk 0:00:23]}  Nc3 {[%clk 0:00:12]} 41. Ra1 {[%clk 0:00:22]}  Bb5 {[%clk 0:00:11]} 42. Bf4+ {[%clk 0:00:19]}  Kc6 {[%clk 0:00:11]} 43. d5+ {[%clk 0:00:19]}  Kc5 {[%clk 0:00:11]} 44. Be3+ {[%clk 0:00:19]}  Kd6 {[%clk 0:00:11]} 45. Bf4+ {[%clk 0:00:18]}  Kc5 {[%clk 0:00:11]} 46. Ra7 {[%clk 0:00:19]}  Kb6 {[%clk 0:00:11]} 47. Be3+ {[%clk 0:00:18]}  Rc5 {[%clk 0:00:11]} 48. Rxg7 {[%clk 0:00:14]}  Bc4 {[%clk 0:00:11]} 49. d6 {[%clk 0:00:10]}  Kc6 {[%clk 0:00:11]} 50. Bxc5 {[%clk 0:00:11]} 1-0


[Site "https://www.chess.com"]

[Event "Titled Tuesday Blitz January 18 2022"]
[White "Macovei, Andrei"]
[Black "Nguyen Hong Nhung"]
[WhiteFideId "13904680"]
[BlackFideId "12412201"]
[WhiteElo "2410"]
[BlackElo "1661"]
[Result "1-0"]
[Round "04"]
[TimeControl "180+1"]
[Date "2022.01.18"]
[WhiteClock "0:02:05"]
[BlackClock "0:00:48"]

1. e4 {[%clk 0:02:59]}  c5 {[%clk 0:03:00]} 2. Nf3 {[%clk 0:02:59]}  e6 {[%clk 0:03:00]} 3. g3 {[%clk 0:02:59]}  Nc6 {[%clk 0:03:00]} 4. Bg2 {[%clk 0:02:59]}  d6 {[%clk 0:02:51]} 5. O-O {[%clk 0:02:59]}  g6 {[%clk 0:02:50]} 6. c3 {[%clk 0:02:59]}  Bg7 {[%clk 0:02:50]} 7. d4 {[%clk 0:02:59]}  cxd4 {[%clk 0:02:50]} 8. cxd4 {[%clk 0:03:00]}  Nge7 {[%clk 0:02:50]} 9. Nc3 {[%clk 0:03:00]}  O-O {[%clk 0:02:50]} 10. h4 {[%clk 0:02:58]}  h5 {[%clk 0:02:45]} 11. Bg5 {[%clk 0:02:57]}  Qb6 {[%clk 0:02:41]} 12. d5 {[%clk 0:02:56]}  f6 {[%clk 0:02:26]} 13. Be3 {[%clk 0:02:56]}  Qxb2 {[%clk 0:02:24]} 14. Na4 {[%clk 0:02:56]}  Qa3 {[%clk 0:02:17]} 15. dxc6 {[%clk 0:02:47]}  Nxc6 {[%clk 0:02:16]} 16. Bc1 {[%clk 0:02:42]}  Qb4 {[%clk 0:02:14]} 17. Qb3 {[%clk 0:02:36]}  Qxe4 {[%clk 0:02:07]} 18. Re1 {[%clk 0:02:35]}  Qf5 {[%clk 0:02:06]} 19. Ba3 {[%clk 0:02:33]}  Rd8 {[%clk 0:02:05]} 20. Rac1 {[%clk 0:02:23]}  Kh8 {[%clk 0:01:53]} 21. Rxc6 {[%clk 0:02:15]}  bxc6 {[%clk 0:01:53]} 22. Nd4 {[%clk 0:02:16]}  Qa5 {[%clk 0:01:46]} 23. Bb4 {[%clk 0:02:16]}  Qa6 {[%clk 0:01:42]} 24. Nxe6 {[%clk 0:02:12]}  Bxe6 {[%clk 0:01:38]} 25. Rxe6 {[%clk 0:02:13]}  c5 {[%clk 0:01:36]} 26. Bc3 {[%clk 0:02:12]}  Rab8 {[%clk 0:01:35]} 27. Qc2 {[%clk 0:02:11]}  Qc4 {[%clk 0:01:33]} 28. Rxf6 {[%clk 0:02:11]}  Qg4 {[%clk 0:01:14]} 29. Rxg6 {[%clk 0:02:08]}  Qxg6 {[%clk 0:00:56]} 30. Qxg6 {[%clk 0:02:07]}  Bxc3 {[%clk 0:00:56]} 31. Nxc3 {[%clk 0:02:08]}  Rd7 {[%clk 0:00:56]} 32. Nd5 {[%clk 0:02:07]}  Rg7 {[%clk 0:00:51]} 33. Qh6+ {[%clk 0:02:06]}  Kg8 {[%clk 0:00:52]} 34. Nf6+ {[%clk 0:02:06]}  Kf8 {[%clk 0:00:52]} 35. Bd5 {[%clk 0:02:04]}  Rb1+ {[%clk 0:00:49]} 36. Kg2 {[%clk 0:02:04]}  Rb2 {[%clk 0:00:49]} 37. Qh8+ {[%clk 0:02:04]}  Ke7 {[%clk 0:00:47]} 38. Qxg7+ {[%clk 0:02:04]}  Kd8 {[%clk 0:00:48]} 39. Qd7# {[%clk 0:02:05]} 1-0


[Site "https://www.chess.com"]

[Event "Titled Tuesday Blitz January 18 2022"]
[White "Manukyan, Artyom"]
[Black "Kravtsiv, Martyn"]
[WhiteFideId "13305786"]
[BlackFideId "14113147"]
[WhiteElo "2034"]
[BlackElo "2694"]
[Result "0-1"]
[Round "04"]
[TimeControl "180+1"]
[Date "2022.01.18"]
[WhiteClock "0:00:02"]
[BlackClock "0:00:22"]

1. e4 {[%clk 0:03:00]}  e5 {[%clk 0:02:59]} 2. Nf3 {[%clk 0:03:00]}  Nc6 {[%clk 0:02:59]} 3. Bb5 {[%clk 0:03:00]}  a6 {[%clk 0:02:59]} 4. Bxc6 {[%clk 0:03:00]}  dxc6 {[%clk 0:02:58]} 5. O-O {[%clk 0:03:01]}  Bg4 {[%clk 0:02:54]} 6. h3 {[%clk 0:03:01]}  h5 {[%clk 0:02:54]} 7. d3 {[%clk 0:03:02]}  Qf6 {[%clk 0:02:54]} 8. Nbd2 {[%clk 0:03:02]}  Ne7 {[%clk 0:02:51]} 9. Re1 {[%clk 0:03:02]}  Ng6 {[%clk 0:02:50]} 10. d4 {[%clk 0:03:03]}  Bd6 {[%clk 0:02:40]} 11. hxg4 {[%clk 0:02:57]}  hxg4 {[%clk 0:02:38]} 12. Nh2 {[%clk 0:02:57]}  Rxh2 {[%clk 0:02:32]} 13. Qxg4 {[%clk 0:02:57]}  Rh4 {[%clk 0:02:31]} 14. Qf5 {[%clk 0:02:57]}  Rf4 {[%clk 0:02:31]} 15. Qxf6 {[%clk 0:02:55]}  Rxf6 {[%clk 0:02:31]} 16. Nf3 {[%clk 0:02:48]}  Rxf3 {[%clk 0:02:29]} 17. gxf3 {[%clk 0:02:48]}  exd4 {[%clk 0:02:30]} 18. e5 {[%clk 0:02:36]}  Be7 {[%clk 0:02:24]} 19. Re4 {[%clk 0:02:28]}  Nh4 {[%clk 0:02:22]} 20. f4 {[%clk 0:02:21]}  O-O-O {[%clk 0:02:21]} 21. Re2 {[%clk 0:01:56]}  Kd7 {[%clk 0:02:16]} 22. Bd2 {[%clk 0:01:54]}  Ke6 {[%clk 0:02:15]} 23. Kh2 {[%clk 0:01:16]}  c5 {[%clk 0:02:08]} 24. Rh1 {[%clk 0:01:14]}  c4 {[%clk 0:02:07]} 25. Kg3 {[%clk 0:01:10]}  Nf5+ {[%clk 0:02:06]} 26. Kg2 {[%clk 0:01:11]}  b5 {[%clk 0:02:04]} 27. a3 {[%clk 0:01:10]}  c5 {[%clk 0:02:03]} 28. Rh3 {[%clk 0:00:54]}  b4 {[%clk 0:01:53]} 29. axb4 {[%clk 0:00:45]}  cxb4 {[%clk 0:01:54]} 30. Re1 {[%clk 0:00:45]}  c3 {[%clk 0:01:51]} 31. bxc3 {[%clk 0:00:32]}  bxc3 {[%clk 0:01:51]} 32. Bc1 {[%clk 0:00:32]}  a5 {[%clk 0:01:49]} 33. Reh1 {[%clk 0:00:30]}  Rb8 {[%clk 0:00:56]} 34. Rh8 {[%clk 0:00:29]}  Rb1 {[%clk 0:00:57]} 35. Ra8 {[%clk 0:00:25]}  Ra1 {[%clk 0:00:50]} 36. Ra6+ {[%clk 0:00:19]}  Kd5 {[%clk 0:00:50]} 37. Ra7 {[%clk 0:00:16]}  Ra2 {[%clk 0:00:48]} 38. Kf3 {[%clk 0:00:13]}  g6 {[%clk 0:00:45]} 39. Ra6 {[%clk 0:00:09]}  Bb4 {[%clk 0:00:39]} 40. Re1 {[%clk 0:00:04]}  Rxc2 {[%clk 0:00:39]} 41. Ra7 {[%clk 0:00:04]}  d3 {[%clk 0:00:38]} 42. Be3 {[%clk 0:00:04]}  d2 {[%clk 0:00:35]} 43. Rd1 {[%clk 0:00:04]}  Nxe3 {[%clk 0:00:34]} 44. fxe3 {[%clk 0:00:04]}  Rc1 {[%clk 0:00:34]} 45. Ke2 {[%clk 0:00:05]}  Kc4 {[%clk 0:00:26]} 46. Rc7+ {[%clk 0:00:04]}  Kb3 {[%clk 0:00:26]} 47. f5 {[%clk 0:00:04]}  gxf5 {[%clk 0:00:25]} 48. e6 {[%clk 0:00:04]}  fxe6 {[%clk 0:00:24]} 49. e4 {[%clk 0:00:04]}  fxe4 {[%clk 0:00:24]} 50. Rc8 {[%clk 0:00:03]}  e3 {[%clk 0:00:22]} 51. Rc7 {[%clk 0:00:02]} 0-1


[Site "https://www.chess.com"]

[Event "Titled Tuesday Blitz January 18 2022"]
[White "Nenezic, Marko"]
[Black "Babazada, Khazar"]
[WhiteFideId "912123"]
[BlackFideId "13413554"]
[WhiteElo "2484"]
[BlackElo "2418"]
[Result "0-1"]
[Round "04"]
[TimeControl "180+1"]
[Date "2022.01.18"]
[WhiteClock "0:00:45"]
[BlackClock "0:01:06"]

1. Nf3 {[%clk 0:03:00]}  c5 {[%clk 0:02:57]} 2. c4 {[%clk 0:03:01]}  Nc6 {[%clk 0:02:56]} 3. d4 {[%clk 0:03:01]}  cxd4 {[%clk 0:02:56]} 4. Nxd4 {[%clk 0:03:02]}  e5 {[%clk 0:02:57]} 5. Nb5 {[%clk 0:03:01]}  d6 {[%clk 0:02:53]} 6. N1c3 {[%clk 0:03:00]}  a6 {[%clk 0:02:53]} 7. Na3 {[%clk 0:03:00]}  Nf6 {[%clk 0:02:53]} 8. g3 {[%clk 0:02:59]}  Be7 {[%clk 0:02:53]} 9. Bg2 {[%clk 0:03:00]}  O-O {[%clk 0:02:51]} 10. O-O {[%clk 0:03:00]}  Be6 {[%clk 0:02:50]} 11. Bg5 {[%clk 0:02:57]}  Qd7 {[%clk 0:02:48]} 12. Bxf6 {[%clk 0:02:56]}  Bxf6 {[%clk 0:02:49]} 13. Nd5 {[%clk 0:02:53]}  Bd8 {[%clk 0:02:50]} 14. Rc1 {[%clk 0:02:37]}  Ba5 {[%clk 0:02:49]} 15. Nc2 {[%clk 0:02:34]}  Rac8 {[%clk 0:02:42]} 16. a3 {[%clk 0:02:30]}  Kh8 {[%clk 0:02:25]} 17. b4 {[%clk 0:02:28]}  Bd8 {[%clk 0:02:24]} 18. Qd2 {[%clk 0:02:18]}  f5 {[%clk 0:02:16]} 19. f4 {[%clk 0:02:14]}  Qe8 {[%clk 0:01:38]} 20. Kh1 {[%clk 0:02:03]}  Qh5 {[%clk 0:01:38]} 21. e3 {[%clk 0:01:51]}  Bxd5 {[%clk 0:01:13]} 22. Bxd5 {[%clk 0:01:31]}  Bb6 {[%clk 0:01:09]} 23. Rce1 {[%clk 0:01:10]}  Qg6 {[%clk 0:01:08]} 24. Qg2 {[%clk 0:01:05]}  e4 {[%clk 0:01:07]} 25. h3 {[%clk 0:00:45]}  Rc7 {[%clk 0:01:06]} 26. g4 {[%clk 0:00:45]}  Ne7 {[%clk 0:01:05]} 27. gxf5 {[%clk 0:00:45]}  Qxg2+ {[%clk 0:01:05]} 28. Kxg2 {[%clk 0:00:45]}  Nxd5 {[%clk 0:01:06]} 0-1


[Site "https://www.chess.com"]

[Event "Titled Tuesday Blitz January 18 2022"]
[White "Nesterov, Arseniy"]
[Black "Kalashian, David"]
[WhiteFideId "24198455"]
[BlackFideId "13302418"]
[WhiteElo "2489"]
[BlackElo "2490"]
[Result "0-1"]
[Round "04"]
[TimeControl "180+1"]
[Date "2022.01.18"]
[WhiteClock "0:00:07"]
[BlackClock "0:00:19"]

1. d4 {[%clk 0:03:00]}  Nf6 {[%clk 0:02:59]} 2. c4 {[%clk 0:03:00]}  g6 {[%clk 0:02:59]} 3. Nc3 {[%clk 0:03:00]}  Bg7 {[%clk 0:03:00]} 4. e4 {[%clk 0:03:00]}  d6 {[%clk 0:03:00]} 5. Be2 {[%clk 0:03:01]}  O-O {[%clk 0:03:00]} 6. Be3 {[%clk 0:03:01]}  e5 {[%clk 0:02:59]} 7. d5 {[%clk 0:03:02]}  Ne8 {[%clk 0:02:58]} 8. g4 {[%clk 0:03:01]}  f5 {[%clk 0:02:52]} 9. gxf5 {[%clk 0:03:00]}  gxf5 {[%clk 0:02:53]} 10. exf5 {[%clk 0:03:01]}  Bxf5 {[%clk 0:02:53]} 11. Nf3 {[%clk 0:02:59]}  Nd7 {[%clk 0:02:47]} 12. Rg1 {[%clk 0:02:56]}  Kh8 {[%clk 0:02:46]} 13. Ng5 {[%clk 0:02:49]}  Nc5 {[%clk 0:02:44]} 14. Bxc5 {[%clk 0:02:40]}  dxc5 {[%clk 0:02:44]} 15. Bd3 {[%clk 0:02:40]}  e4 {[%clk 0:02:25]} 16. Bxe4 {[%clk 0:02:14]}  Qe7 {[%clk 0:02:22]} 17. Qe2 {[%clk 0:02:11]}  Nd6 {[%clk 0:01:59]} 18. Bxf5 {[%clk 0:02:10]}  Qxe2+ {[%clk 0:01:57]} 19. Kxe2 {[%clk 0:02:07]}  Rxf5 {[%clk 0:01:56]} 20. Ne6 {[%clk 0:01:58]}  Bd4 {[%clk 0:01:52]} 21. Rg2 {[%clk 0:01:10]}  Nxc4 {[%clk 0:01:49]} 22. Nb5 {[%clk 0:00:40]}  c6 {[%clk 0:01:33]} 23. Nbc7 {[%clk 0:00:35]}  Rg8 {[%clk 0:01:26]} 24. Rag1 {[%clk 0:00:11]}  Rxg2 {[%clk 0:01:21]} 25. Rxg2 {[%clk 0:00:12]}  cxd5 {[%clk 0:01:20]} 26. b3 {[%clk 0:00:11]}  Nd6 {[%clk 0:01:11]} 27. Nxd4 {[%clk 0:00:07]}  cxd4 {[%clk 0:01:11]} 28. Rg4 {[%clk 0:00:08]}  Ne4 {[%clk 0:00:52]} 29. Nxd5 {[%clk 0:00:07]}  Re5 {[%clk 0:00:19]} 0-1


[Site "https://www.chess.com"]